[Event "FIDE WCCC Open-12 2024"]
[Site "Montesilvano"]
[Date "2024.11.25"]
[Round "10.52"]
[White "Liu, Richard Jingjie"]
[Black "Wang, Yu-Chi Xavier"]
[Result "1-0"]
[ECO "C54"]
[WhiteElo "1795"]
[BlackElo "1543"]
[Annotator "NA RC"]
[PlyCount "64"]
[EventDate "2024.11.18"]
[EventType "swiss"]
[EventCountry "ITA"]
[SourceTitle "playchess.com"]
[Source "ChessBase"]
[SourceQuality "1"]
[TimeControl "5400+30"]

1. e4 {[%emt 0:00:02]} e5 {[%emt 0:00:07]} 2. Nf3 {[%emt 0:00:02]} Nc6 {[%emt 0:00:22]} 3. Bc4 {[%emt 0:00:02]} Bc5 {[%emt 0:00:16]} 4. c3 {[%emt 0:00:03]} Nf6 {[%emt 0:00:29]} 5. d4 {[%emt 0:00:02]} exd4 {[%emt 0:00:10]} 6. cxd4 {[%emt 0:00:02]} Bb4+ {[%emt 0:00:30]} 7. Nc3 {[%emt 0:00:06]} Nxe4 {[%emt 0:00:44]} 8. O-O {[%emt 0:00:03]} Bxc3 {[%emt 0:00:10]} 9. d5 {[%emt 0:00:07]} Ne5 {[%emt 0:00:12]} 10. bxc3 {[%emt 0:00:01]} Nxc4 {[%emt 0:01:14]} 11. Qd4 {[%emt 0:00:01]} Ncd6 {[%emt 0:00:21]} 12. Qxg7 {[%emt 0:00:04]} Qf6 {[%emt 0:01:17]} 13. Qxf6 {[%emt 0:00:01]} Nxf6 {[%emt 0:00:19]} 14. Re1+ {[%emt 0:00:02]} Nfe4 {[%emt 0:37:56]} 15. Nd2 {[%emt 0:00:48]} f5 {[%emt 0:16:02]} 16. f3 {[%emt 0:00:10]} O-O {[%emt 0:04:15]} 17. fxe4 {[%emt 0:00:06]} Re8 {[%emt 0:01:25]} 18. e5 {[%emt 0:00:16]} Nf7 {[%emt 0:03:29]} 19. Nf3 {[%emt 0:00:04]} Kg7 {[%emt 0:12:17]} 20. c4 {[%emt 0:00:37]} Rb8 {[%emt 0:02:47]} 21. a4 {[%emt 0:00:34]} c6 {[%emt 0:00:40]} 22. Bb2 {[%emt 0:00:29]} Kg6 {[%emt 0:00:53]} 23. Ra3 {[%emt 0:03:06]} cxd5 {[%emt 0:01:51]} 24. cxd5 {[%emt 0:00:02]} b5 {[%emt 0:00:34]} 25. Nh4+ {[%emt 0:02:28]} Kg5 {[%emt 0:01:18]} 26. Nf3+ {[%emt 0:10:26]} Kg6 {[%emt 0:00:25]} 27. axb5 {[%emt 0:00:03]} Rxb5 {[%emt 0:00:33]} 28. Nh4+ {[%emt 1:24:43]} Kg5 {[%emt 0:06:05]} 29. Bc1+ {[%emt 0:00:00]} Kxh4 {[%emt 0:01:00]} 30. Rh3+ {[%emt 0:00:00]} Kg4 {[%emt 0:00:06]} 31. Rxh7 {[%emt 0:00:00]} Rxe5 {[%emt 0:05:55]} 32. h3+ {[%emt 0:00:00]} Kg3 {[%emt 0:00:46]} 1-0

[Event "FIDE WCCC Open-12 2024"]
[Site "Montesilvano"]
[Date "2024.11.25"]
[Round "10.53"]
[White "Kraucenka, Justas"]
[Black "Simiyu Jadon"]
[Result "1-0"]
[ECO "D35"]
[WhiteElo "1650"]
[BlackElo "1784"]
[Annotator "NA RC"]
[PlyCount "129"]
[EventDate "2024.11.18"]
[EventType "swiss"]
[EventCountry "ITA"]
[SourceTitle "playchess.com"]
[Source "ChessBase"]
[SourceQuality "1"]
[TimeControl "5400+30"]

1. d4 {[%emt 0:00:02]} d5 {[%emt 0:00:08]} 2. c4 {[%emt 0:00:07]} e6 {[%emt 0:00:06]} 3. Nc3 {[%emt 0:00:05]} Nf6 {[%emt 0:00:08]} 4. cxd5 {[%emt 0:00:06]} exd5 {[%emt 0:00:08]} 5. Bg5 {[%emt 0:00:07]} c6 {[%emt 0:00:06]} 6. e3 {[%emt 0:00:14]} Be7 {[%emt 0:00:09]} 7. Bd3 {[%emt 0:00:17]} Nbd7 {[%emt 0:00:07]} 8. Nf3 {[%emt 0:00:38]} h6 {[%emt 0:00:37]} 9. Bf4 {[%emt 0:00:35]} O-O {[%emt 0:00:36]} 10. O-O {[%emt 0:00:06]} Nh5 {[%emt 0:01:21]} 11. Be5 {[%emt 0:00:29]} g6 {[%emt 0:05:47]} 12. h3 {[%emt 0:01:47]} Ng7 {[%emt 0:01:22]} 13. Bh2 {[%emt 0:02:39]} f5 {[%emt 0:04:14]} 14. Ne5 {[%emt 0:01:22]} Nxe5 {[%emt 0:00:31]} 15. Bxe5 {[%emt 0:00:14]} Bf6 {[%emt 0:01:24]} 16. Bh2 {[%emt 0:02:52]} g5 {[%emt 0:02:23]} 17. b4 {[%emt 0:05:06]} Kh8 {[%emt 0:03:31]} 18. Qd2 {[%emt 0:08:19]} h5 {[%emt 0:08:23]} 19. b5 {[%emt 0:02:26]} Be7 {[%emt 0:05:33]} 20. bxc6 {[%emt 0:04:04]} bxc6 {[%emt 0:00:06]} 21. Rac1 {[%emt 0:02:13]} Bd6 {[%emt 0:00:10]} 22. Bxd6 {[%emt 0:02:41]} Qxd6 {[%emt 0:00:06]} 23. Na4 {[%emt 0:00:36]} f4 {[%emt 0:00:38]} 24. Be2 {[%emt 0:09:11]} f3 {[%emt 0:16:03]} 25. Bxf3 {[%emt 0:02:28]} Bxh3 {[%emt 0:01:09]} 26. Bxh5 {[%emt 0:08:56]} Nxh5 {[%emt 0:00:09]} 27. gxh3 {[%emt 0:00:04]} Rf3 {[%emt 0:02:55]} 28. Kg2 {[%emt 0:06:23]} Raf8 {[%emt 0:00:09]} 29. Nc5 {[%emt 0:09:16]} g4 {[%emt 0:01:30]} 30. hxg4 {[%emt 0:12:09]} Qg6 {[%emt 0:00:20]} 31. Rh1 {[%emt 0:02:23]} Qxg4+ {[%emt 0:00:08]} 32. Kf1 {[%emt 0:18:35]} Kg8 {[%emt 0:09:57]} 33. Rg1 {[%emt 0:00:00]} Rg3 {[%emt 0:00:10]} 34. Rxg3 {[%emt 0:00:00]} Nxg3+ {[%emt 0:00:08]} 35. Ke1 {[%emt 0:00:00]} Qh3 {[%emt 0:00:10]} 36. Kd1 {[%emt 0:00:00]} Qf1+ {[%emt 0:01:51]} 37. Qe1 {[%emt 0:00:00]} Rxf2 {[%emt 0:02:10]} 38. Qxf1 {[%emt 0:00:00]} Rxf1+ {[%emt 0:01:20]} 39. Kc2 {[%emt 0:00:00]} Rf2+ {[%emt 0:00:15]} 40. Kb1 {[%emt 0:00:00]} Nf1 {[%emt 0:00:39]} 41. Nd3 {[%emt 0:00:00]} Rf6 {[%emt 0:00:40]} 42. Ne5 {[%emt 0:00:00]} Nxe3 {[%emt 0:00:59]} 43. Rxc6 {[%emt 0:00:00]} Rf1+ {[%emt 0:00:39]} 44. Rc1 {[%emt 0:00:00]} Rxc1+ {[%emt 0:05:15]} 45. Kxc1 {[%emt 0:00:00]} Kf8 {[%emt 0:00:17]} 46. Kd2 {[%emt 0:00:43]} Nf5 {[%emt 0:00:25]} 47. Nc6 {[%emt 0:00:20]} a6 {[%emt 0:01:00]} 48. Kd3 {[%emt 0:00:06]} Nd6 {[%emt 0:01:03]} 49. Nb4 {[%emt 0:00:25]} Ke7 {[%emt 0:01:15]} 50. Nxa6 {[%emt 0:01:09]} Nc4 {[%emt 0:00:31]} 51. Nc5 {[%emt 0:00:40]} Kd6 {[%emt 0:00:36]} 52. Kc3 {[%emt 0:01:03]} Kc6 {[%emt 0:00:53]} 53. a4 {[%emt 0:01:05]} Nd6 {[%emt 0:01:25]} 54. Kb4 {[%emt 0:00:40]} Nc8 {[%emt 0:01:06]} 55. a5 {[%emt 0:00:16]} Na7 {[%emt 0:00:06]} 56. Nd3 {[%emt 0:00:21]} Kd6 {[%emt 0:00:35]} 57. Ne5 {[%emt 0:00:12]} Nc8 {[%emt 0:01:58]} 58. Kb5 {[%emt 0:00:11]} Kc7 {[%emt 0:10:46]} 59. Kc5 {[%emt 0:00:41]} Ne7 {[%emt 0:00:34]} 60. Nd3 {[%emt 0:00:14]} Nc6 {[%emt 0:01:41]} 61. a6 {[%emt 0:01:00]} Nb8 {[%emt 0:00:33]} 62. Nb4 {[%emt 0:00:17]} Nd7+ {[%emt 0:12:36]} 63. Kxd5 {[%emt 0:00:17]} Kb6 {[%emt 0:00:00]} 64. Kd6 {[%emt 0:06:20]} Nf6 {[%emt 0:00:00]} 65. Nd5+ {[%emt 0:00:00]} 1-0

[Event "FIDE WCCC Open-12 2024"]
[Site "Montesilvano"]
[Date "2024.11.25"]
[Round "10.54"]
[White "Pham, Le Thao Nguyen"]
[Black "Sharku, Uvejs"]
[Result "1-0"]
[ECO "B12"]
[WhiteElo "2384"]
[BlackElo "1516"]
[Annotator "RC"]
[PlyCount "49"]
[EventDate "2024.11.18"]
[EventType "swiss"]
[EventCountry "ITA"]
[SourceTitle "playchess.com"]
[Source "ChessBase"]
[SourceQuality "1"]
[TimeControl "5400+30"]

1. e4 {[%emt 0:00:15]} c6 {[%emt 0:00:18]} 2. d4 {[%emt 0:00:12]} d5 {[%emt 0:00:11]} 3. f3 {[%emt 0:00:10]} g6 {[%emt 0:01:06]} 4. e5 {[%emt 0:00:36]} Bg7 {[%emt 0:00:17]} 5. Bd3 {[%emt 0:01:06]} f6 {[%emt 0:00:31]} 6. f4 {[%emt 0:00:13]} Nh6 {[%emt 0:05:20]} 7. Nf3 {[%emt 0:01:42]} O-O {[%emt 0:01:31]} 8. O-O {[%emt 0:02:16]} Qb6 {[%emt 0:07:56]} 9. a4 {[%emt 0:19:41]} a5 {[%emt 0:05:17]} 10. Ra3 {[%emt 0:06:34]} Bd7 {[%emt 0:12:06]} 11. Kh1 {[%emt 0:11:36]} Nf5 {[%emt 0:07:28]} 12. Be2 {[%emt 0:06:46]} Na6 {[%emt 0:04:26]} 13. g4 {[%emt 0:04:32]} Nh6 {[%emt 0:01:07]} 14. h3 {[%emt 0:00:06]} fxe5 {[%emt 0:03:08]} 15. fxe5 {[%emt 0:03:16]} Rf7 {[%emt 0:03:35]} 16. Rb3 {[%emt 0:10:08]} Qa7 {[%emt 0:00:26]} 17. Bd2 {[%emt 0:01:17]} Nc7 {[%emt 0:01:21]} 18. Qc1 {[%emt 0:01:34]} Nxg4 {[%emt 0:01:02]} 19. hxg4 {[%emt 0:02:05]} Bxg4 {[%emt 0:00:13]} 20. Be3 {[%emt 0:10:16]} Raf8 {[%emt 0:02:59]} 21. Nbd2 {[%emt 0:01:59]} Qb8 {[%emt 0:03:47]} 22. Qe1 {[%emt 0:08:27]} Qc8 {[%emt 0:02:16]} 23. Qh4 {[%emt 0:01:18]} Rf5 {[%emt 0:10:04]} 24. Qxg4 {[%emt 0:01:00]} Rh5+ {[%emt 0:00:09]} 25. Nh2 {[%emt 0:00:06]} 1-0

[Event "FIDE WCCC Open-12 2024"]
[Site "Montesilvano"]
[Date "2024.11.25"]
[Round "10.55"]
[White "Su, Jayden Chenxuan"]
[Black "Mihajlovic, Stefan"]
[Result "1-0"]
[ECO "A52"]
[WhiteElo "1700"]
[BlackElo "1594"]
[Annotator "NA RC"]
[PlyCount "47"]
[EventDate "2024.11.18"]
[EventType "swiss"]
[EventCountry "ITA"]
[SourceTitle "playchess.com"]
[Source "ChessBase"]
[SourceQuality "1"]
[TimeControl "5400+30"]

1. d4 {[%emt 0:00:04]} Nf6 {[%emt 0:00:08]} 2. c4 {[%emt 0:00:04]} e5 {[%emt 0:00:03]} 3. dxe5 {[%emt 0:00:12]} Ng4 {[%emt 0:00:05]} 4. e4 {[%emt 0:00:18]} Nxe5 {[%emt 0:00:52]} 5. f4 {[%emt 0:00:07]} Ng6 {[%emt 0:04:01]} 6. Nc3 {[%emt 0:00:15]} Bb4 {[%emt 0:00:32]} 7. Nge2 {[%emt 0:00:12]} d6 {[%emt 0:02:08]} 8. a3 {[%emt 0:00:12]} Bc5 {[%emt 0:02:13]} 9. b4 {[%emt 0:00:19]} Bb6 {[%emt 0:00:45]} 10. Nd5 {[%emt 0:03:11]} O-O {[%emt 0:05:05]} 11. Nxb6 {[%emt 0:05:03]} axb6 {[%emt 0:03:32]} 12. f5 {[%emt 0:01:43]} Ne5 {[%emt 0:07:29]} 13. Nc3 {[%emt 0:02:26]} Nbc6 {[%emt 0:06:34]} 14. Be2 {[%emt 0:04:33]} Nxb4 {[%emt 0:01:20]} 15. Bb2 {[%emt 0:02:29]} Nbc6 {[%emt 0:01:55]} 16. O-O {[%emt 0:00:53]} Na5 {[%emt 0:01:49]} 17. f6 {[%emt 0:04:27]} Naxc4 {[%emt 0:01:54]} 18. Bxc4 {[%emt 0:00:18]} Nxc4 {[%emt 0:00:16]} 19. Bc1 {[%emt 0:00:10]} gxf6 {[%emt 0:03:42]} 20. Nd5 {[%emt 0:01:14]} f5 {[%emt 0:02:05]} 21. exf5 {[%emt 0:01:07]} Ne5 {[%emt 0:03:16]} 22. Bh6 {[%emt 0:04:17]} Re8 {[%emt 0:00:59]} 23. Qh5 {[%emt 0:01:43]} f6 {[%emt 0:02:05]} 24. Nxf6+ {[%emt 1:07:13]} 1-0

[Event "FIDE WCCC Open-12 2024"]
[Site "Montesilvano"]
[Date "2024.11.25"]
[Round "10.56"]
[White "Teo, Hong Kai Javier"]
[Black "Kim, Derek Minwoo"]
[Result "1-0"]
[ECO "C54"]
[WhiteElo "1675"]
[BlackElo "1699"]
[Annotator "NA RC"]
[PlyCount "87"]
[EventDate "2024.11.18"]
[EventType "swiss"]
[EventCountry "ITA"]
[SourceTitle "playchess.com"]
[Source "ChessBase"]
[SourceQuality "1"]
[TimeControl "5400+30"]

1. e4 {[%emt 0:00:20]} e5 {[%emt 0:00:31]} 2. Nf3 {[%emt 0:01:18]} Nc6 {[%emt 0:01:13]} 3. Bc4 {[%emt 0:00:08]} Bc5 {[%emt 0:00:38]} 4. c3 {[%emt 0:00:37]} Nf6 {[%emt 0:00:38]} 5. d3 {[%emt 0:00:09]} d6 {[%emt 0:00:38]} 6. Nbd2 {[%emt 0:00:35]} O-O {[%emt 0:01:17]} 7. Bb3 {[%emt 0:01:04]} Be6 {[%emt 0:03:12]} 8. h3 {[%emt 0:01:46]} d5 {[%emt 0:02:27]} 9. Qe2 {[%emt 0:01:18]} h6 {[%emt 0:07:59]} 10. Nf1 {[%emt 0:00:29]} Re8 {[%emt 0:10:10]} 11. Ng3 {[%emt 0:03:01]} a5 {[%emt 0:08:20]} 12. Nh4 {[%emt 0:23:51]} a4 {[%emt 0:04:30]} 13. Bc2 {[%emt 0:01:19]} dxe4 {[%emt 0:00:56]} 14. dxe4 {[%emt 0:01:42]} Ne7 {[%emt 0:02:39]} 15. Qf3 {[%emt 0:01:53]} b5 {[%emt 0:05:56]} 16. Bxh6 {[%emt 0:01:10]} b4 {[%emt 0:05:37]} 17. Bg5 {[%emt 0:06:07]} Nh7 {[%emt 0:02:53]} 18. Bxe7 {[%emt 0:03:46]} Rxe7 {[%emt 0:01:02]} 19. Ngf5 {[%emt 0:01:26]} Rd7 {[%emt 0:01:27]} 20. O-O {[%emt 0:02:05]} b3 {[%emt 0:08:45]} 21. axb3 {[%emt 0:02:00]} axb3 {[%emt 0:00:32]} 22. Rxa8 {[%emt 0:00:06]} Qxa8 {[%emt 0:00:09]} 23. Qg4 {[%emt 0:00:13]} Qf8 {[%emt 0:08:41]} 24. Bb1 {[%emt 0:07:30]} Kh8 {[%emt 0:13:23]} 25. Qg3 {[%emt 0:06:20]} Bc4 {[%emt 0:02:33]} 26. Re1 {[%emt 0:01:07]} Rd2 {[%emt 0:00:35]} 27. Ne3 {[%emt 0:00:10]} Bxe3 {[%emt 0:00:41]} 28. Qxe3 {[%emt 0:01:37]} Rxb2 {[%emt 0:00:52]} 29. Nf5 {[%emt 0:02:10]} Qd8 {[%emt 0:02:25]} 30. Qg3 {[%emt 0:00:58]} Qg5 {[%emt 0:00:34]} 31. Qxe5 {[%emt 0:00:30]} Nf6 {[%emt 0:01:25]} 32. Qc5 {[%emt 0:00:54]} Ba6 {[%emt 0:01:19]} 33. Qf8+ {[%emt 0:08:47]} Kh7 {[%emt 0:00:42]} 34. Ne7 {[%emt 0:02:40]} Qh6 {[%emt 0:02:20]} 35. e5+ {[%emt 0:00:11]} Rxb1 {[%emt 0:00:24]} 36. Rxb1 {[%emt 0:00:23]} b2 {[%emt 0:00:11]} 37. Rxb2 {[%emt 0:01:49]} Qc1+ {[%emt 0:00:24]} 38. Kh2 {[%emt 0:00:03]} Qf4+ {[%emt 0:00:39]} 39. g3 {[%emt 0:00:10]} Ng4+ {[%emt 0:00:07]} 40. hxg4 {[%emt 0:00:22]} Qh6+ {[%emt 0:00:06]} 41. Kg2 {[%emt 0:00:13]} Qc1 {[%emt 0:01:26]} 42. Qg8+ {[%emt 0:00:12]} Kh6 {[%emt 0:00:04]} 43. Qh8+ {[%emt 0:00:09]} Kg5 {[%emt 0:00:04]} 44. Qh4# {[%emt 0:00:40]} 1-0

[Event "FIDE WCCC Open-12 2024"]
[Site "Montesilvano"]
[Date "2024.11.25"]
[Round "10.57"]
[White "Son, Juwon"]
[Black "Mintz, Nathan"]
[Result "0-1"]
[ECO "B22"]
[WhiteElo "1448"]
[BlackElo "1633"]
[Annotator "NA RC"]
[PlyCount "72"]
[EventDate "2024.11.18"]
[EventType "swiss"]
[EventCountry "ITA"]
[SourceTitle "playchess.com"]
[Source "ChessBase"]
[SourceQuality "1"]
[TimeControl "5400+30"]

1. e4 {[%emt 0:00:02]} c5 {[%emt 0:00:04]} 2. c3 {[%emt 0:00:01]} d5 {[%emt 0:00:09]} 3. exd5 {[%emt 0:00:07]} Qxd5 {[%emt 0:00:08]} 4. d4 {[%emt 0:00:04]} Nf6 {[%emt 0:00:13]} 5. Nf3 {[%emt 0:00:07]} Nc6 {[%emt 0:00:15]} 6. Na3 {[%emt 0:01:58]} Bg4 {[%emt 0:04:31]} 7. Be2 {[%emt 0:01:58]} cxd4 {[%emt 0:01:03]} 8. Nb5 {[%emt 0:00:38]} O-O-O {[%emt 0:06:50]} 9. Nbxd4 {[%emt 0:21:38]} e6 {[%emt 0:06:37]} 10. Be3 {[%emt 0:02:47]} Bc5 {[%emt 0:04:17]} 11. Qa4 {[%emt 0:15:40]} Rhe8 {[%emt 0:18:38]} 12. Nxc6 {[%emt 0:03:53]} bxc6 {[%emt 0:01:24]} 13. Rd1 {[%emt 0:06:38]} Qe4 {[%emt 0:05:47]} 14. Qa6+ {[%emt 0:01:57]} Kc7 {[%emt 0:02:08]} 15. Qa5+ {[%emt 0:06:29]} Bb6 {[%emt 0:02:42]} 16. Bxb6+ {[%emt 0:00:56]} axb6 {[%emt 0:00:28]} 17. Qa7+ {[%emt 0:01:26]} Kc8 {[%emt 0:00:27]} 18. Qa6+ {[%emt 0:00:53]} Kc7 {[%emt 0:01:05]} 19. O-O {[%emt 0:00:14]} Ra8 {[%emt 0:04:15]} 20. Qc4 {[%emt 0:02:13]} Bxf3 {[%emt 0:05:01]} 21. gxf3 {[%emt 0:01:11]} Qf5 {[%emt 0:04:55]} 22. a3 {[%emt 0:04:42]} Nd5 {[%emt 0:02:29]} 23. Qg4 {[%emt 0:04:29]} Nf4 {[%emt 0:08:50]} 24. Rfe1 {[%emt 0:04:23]} Qf6 {[%emt 0:03:09]} 25. Qg3 {[%emt 0:03:03]} Ra5 {[%emt 0:01:26]} 26. h4 {[%emt 0:02:42]} Rh5 {[%emt 0:01:47]} 27. Rd4 {[%emt 0:04:29]} e5 {[%emt 0:01:34]} 28. Bc4 {[%emt 0:04:13]} Rxh4 {[%emt 0:01:55]} 29. Ree4 {[%emt 0:04:38]} Qh6 {[%emt 0:01:08]} 30. Rxf4 {[%emt 0:01:05]} exf4 {[%emt 0:00:31]} 31. Qg2 {[%emt 0:00:41]} Re1+ {[%emt 0:00:46]} 32. Bf1 {[%emt 0:00:16]} Rh1+ {[%emt 0:00:50]} 33. Qxh1 {[%emt 0:00:39]} Rxf1+ {[%emt 0:00:11]} 34. Kxf1 {[%emt 0:00:07]} Qxh1+ {[%emt 0:00:10]} 35. Ke2 {[%emt 0:00:01]} Qc1 {[%emt 0:00:24]} 36. Rd2 {[%emt 0:00:14]} h5 {[%emt 0:00:29]} 0-1

[Event "FIDE WCCC Open-12 2024"]
[Site "Montesilvano"]
[Date "2024.11.25"]
[Round "10.58"]
[White "Boiko, Nazar"]
[Black "Mohd Firdaus, Firast Haiqal"]
[Result "1/2-1/2"]
[ECO "B01"]
[WhiteElo "1614"]
[BlackElo "1514"]
[Annotator "NA RC"]
[PlyCount "88"]
[EventDate "2024.11.18"]
[EventType "swiss"]
[EventCountry "ITA"]
[SourceTitle "playchess.com"]
[Source "ChessBase"]
[SourceQuality "1"]
[TimeControl "5400+30"]

1. e4 {[%emt 0:00:02]} d5 {[%emt 0:00:24]} 2. exd5 {[%emt 0:00:05]} Qxd5 {[%emt 0:00:17]} 3. Nc3 {[%emt 0:00:04]} Qd6 {[%emt 0:00:23]} 4. d4 {[%emt 0:00:07]} Nf6 {[%emt 0:00:26]} 5. Nf3 {[%emt 0:00:12]} c6 {[%emt 0:00:11]} 6. Ne5 {[%emt 0:00:22]} Nbd7 {[%emt 0:00:20]} 7. Nc4 {[%emt 0:00:25]} Qc7 {[%emt 0:00:29]} 8. a4 {[%emt 0:01:49]} a5 {[%emt 0:00:34]} 9. Qf3 {[%emt 0:01:08]} g6 {[%emt 0:06:33]} 10. Bf4 {[%emt 0:04:22]} Qd8 {[%emt 0:00:26]} 11. Qe3 {[%emt 0:15:17]} Bg7 {[%emt 0:03:50]} 12. Nd6+ {[%emt 0:08:09]} Kf8 {[%emt 0:00:14]} 13. Nxc8 {[%emt 0:07:25]} Rxc8 {[%emt 0:01:59]} 14. Be2 {[%emt 0:11:32]} Nb6 {[%emt 0:04:59]} 15. Be5 {[%emt 0:04:59]} Nbd5 {[%emt 0:02:14]} 16. Nxd5 {[%emt 0:04:23]} Nxd5 {[%emt 0:00:14]} 17. Bxg7+ {[%emt 0:04:20]} Kxg7 {[%emt 0:00:29]} 18. Qd2 {[%emt 0:03:37]} Qb6 {[%emt 0:04:52]} 19. c3 {[%emt 0:31:42]} Rhd8 {[%emt 0:03:42]} 20. O-O {[%emt 0:00:00]} Nf6 {[%emt 0:06:54]} 21. Qe3 {[%emt 0:00:00]} c5 {[%emt 0:02:46]} 22. dxc5 {[%emt 0:00:00]} Qxc5 {[%emt 0:00:20]} 23. Qxc5 {[%emt 0:00:00]} Rxc5 {[%emt 0:00:13]} 24. Bf3 {[%emt 0:00:00]} Rd2 {[%emt 0:02:06]} 25. b4 {[%emt 0:00:00]} Rxc3 {[%emt 0:04:12]} 26. bxa5 {[%emt 0:00:00]} Rd7 {[%emt 0:00:33]} 27. Rfb1 {[%emt 0:00:00]} Rc5 {[%emt 0:01:18]} 28. Rb5 {[%emt 0:00:00]} Rdc7 {[%emt 0:00:18]} 29. h3 {[%emt 0:00:00]} Nd7 {[%emt 0:01:56]} 30. Rab1 {[%emt 0:00:00]} Rc1+ 31. Rxc1 {[%emt 0:00:00]} Rxc1+ {[%emt 0:13:06]} 32. Kh2 {[%emt 0:00:00]} Ra1 {[%emt 0:01:19]} 33. Rxb7 {[%emt 0:00:40]} Ne5 {[%emt 0:01:01]} 34. Rxe7 {[%emt 0:02:38]} Nxf3+ {[%emt 0:00:09]} 35. gxf3 {[%emt 0:00:02]} Rxa4 {[%emt 0:00:21]} 36. Ra7 {[%emt 0:00:05]} h5 {[%emt 0:02:01]} 37. Ra8 {[%emt 0:00:32]} Kf6 {[%emt 0:00:36]} 38. a6 {[%emt 0:01:05]} Kg5 {[%emt 0:01:00]} 39. Kg3 {[%emt 0:01:19]} h4+ {[%emt 0:00:19]} 40. Kg2 {[%emt 0:00:46]} Kf4 {[%emt 0:00:44]} 41. Rf8 {[%emt 0:00:46]} f5 {[%emt 0:01:02]} 42. Rh8 {[%emt 0:01:06]} g5 {[%emt 0:00:43]} 43. Rh6 {[%emt 0:00:31]} Ra3 {[%emt 0:02:37]} 44. Rf6 {[%emt 0:00:49]} Ra4 {[%emt 0:00:41]} 1/2-1/2

[Event "FIDE WCCC Open-12 2024"]
[Site "Montesilvano"]
[Date "2024.11.25"]
[Round "10.59"]
[White "To, Nam Long"]
[Black "Krasniqi, Troi"]
[Result "0-1"]
[ECO "A47"]
[WhiteElo "1608"]
[BlackElo "1610"]
[Annotator "NA RC"]
[PlyCount "78"]
[EventDate "2024.11.18"]
[EventType "swiss"]
[EventCountry "ITA"]
[SourceTitle "playchess.com"]
[Source "ChessBase"]
[SourceQuality "1"]
[TimeControl "5400+30"]

1. d4 {[%emt 0:00:02]} Nf6 {[%emt 0:00:04]} 2. Bf4 {[%emt 0:00:08]} e6 {[%emt 0:00:12]} 3. Nf3 {[%emt 0:00:16]} b6 {[%emt 0:00:10]} 4. e3 {[%emt 0:00:44]} Bb7 {[%emt 0:00:11]} 5. h3 {[%emt 0:00:34]} d5 {[%emt 0:00:56]} 6. Be2 {[%emt 0:00:52]} Bd6 {[%emt 0:00:58]} 7. Bxd6 {[%emt 0:03:12]} Qxd6 {[%emt 0:00:14]} 8. O-O {[%emt 0:01:46]} O-O {[%emt 0:02:51]} 9. Nbd2 {[%emt 0:02:39]} Nbd7 {[%emt 0:04:22]} 10. c4 {[%emt 0:04:44]} c5 {[%emt 0:06:40]} 11. Re1 {[%emt 0:07:01]} Rac8 {[%emt 0:06:06]} 12. Rc1 {[%emt 0:04:09]} h6 {[%emt 0:05:17]} 13. Bd3 {[%emt 0:03:28]} Rfd8 {[%emt 0:07:59]} 14. cxd5 {[%emt 0:13:11]} exd5 {[%emt 0:00:35]} 15. e4 {[%emt 0:05:32]} dxe4 {[%emt 0:09:37]} 16. Nxe4 {[%emt 0:00:44]} Nxe4 {[%emt 0:00:31]} 17. Bxe4 {[%emt 0:00:19]} Bxe4 {[%emt 0:00:15]} 18. Rxe4 {[%emt 0:00:55]} Nf6 {[%emt 0:05:29]} 19. Re2 {[%emt 0:09:45]} cxd4 {[%emt 0:04:44]} 20. Rxc8 {[%emt 0:01:04]} Rxc8 {[%emt 0:00:11]} 21. Rd2 {[%emt 0:03:25]} Qe6 {[%emt 0:04:34]} 22. b3 {[%emt 0:01:29]} Ne4 {[%emt 0:03:26]} 23. Rxd4 {[%emt 0:01:53]} Nc3 {[%emt 0:00:39]} 24. Rd8+ {[%emt 0:01:29]} Kh7 {[%emt 0:00:39]} 25. Qc2+ {[%emt 0:02:25]} g6 {[%emt 0:00:45]} 26. Rxc8 {[%emt 0:02:39]} Qxc8 {[%emt 0:00:15]} 27. Nd4 {[%emt 0:02:00]} Qc5 {[%emt 0:05:13]} 28. Ne2 {[%emt 0:03:20]} Nxe2+ {[%emt 0:00:15]} 29. Qxe2 {[%emt 0:00:10]} b5 {[%emt 0:06:51]} 30. g3 {[%emt 0:04:01]} b4 {[%emt 0:03:46]} 31. Kg2 {[%emt 0:03:11]} a5 {[%emt 0:01:51]} 32. Qe4 {[%emt 0:03:42]} Kg7 {[%emt 0:02:50]} 33. Kf3 {[%emt 0:16:11]} Qc3+ {[%emt 0:02:32]} 34. Qe3 {[%emt 0:00:00]} Qa1 {[%emt 0:00:27]} 35. Qd2 {[%emt 0:00:00]} Qh1+ {[%emt 0:00:51]} 36. Kf4 {[%emt 0:00:00]} g5+ {[%emt 0:03:48]} 37. Kg4 {[%emt 0:00:00]} Qe4+ {[%emt 0:01:19]} 38. Kh5 {[%emt 0:00:00]} Qf3+ {[%emt 0:00:19]} 39. g4 {[%emt 0:00:00]} Qxh3# {[%emt 0:00:14]} 0-1

[Event "FIDE WCCC Open-12 2024"]
[Site "Montesilvano"]
[Date "2024.11.25"]
[Round "10.60"]
[White "Mamarasulov, Husan"]
[Black "Wang, Luis"]
[Result "1-0"]
[ECO "D73"]
[WhiteElo "1407"]
[BlackElo "1751"]
[Annotator "NA RC"]
[PlyCount "51"]
[EventDate "2024.11.18"]
[EventType "swiss"]
[EventCountry "ITA"]
[SourceTitle "playchess.com"]
[Source "ChessBase"]
[SourceQuality "1"]
[TimeControl "5400+30"]

1. d4 {[%emt 0:00:03]} Nf6 {[%emt 1:31:00]} 2. c4 {[%emt 0:00:16]} g6 {[%emt 0:00:00]} 3. Nf3 {[%emt 0:00:15]} Bg7 {[%emt 0:00:00]} 4. g3 {[%emt 0:00:33]} O-O {[%emt 0:00:00]} 5. Bg2 {[%emt 0:00:11]} c6 {[%emt 0:00:00]} 6. O-O {[%emt 0:00:41]} d5 {[%emt 0:00:00]} 7. a4 {[%emt 0:01:04]} dxc4 {[%emt 0:00:00]} 8. Na3 {[%emt 0:00:25]} Bg4 {[%emt 0:00:00]} 9. Nxc4 {[%emt 0:01:32]} Nbd7 {[%emt 0:00:00]} 10. a5 {[%emt 0:02:18]} Qc7 {[%emt 0:00:00]} 11. Bf4 {[%emt 0:08:42]} Qc8 {[%emt 0:00:00]} 12. Nfe5 {[%emt 0:09:32]} Be6 {[%emt 0:00:00]} 13. a6 {[%emt 0:09:54]} Bd5 {[%emt 0:00:00]} 14. Na5 {[%emt 0:05:57]} b6 {[%emt 0:00:00]} 15. Naxc6 {[%emt 0:00:30]} Qe8 {[%emt 0:00:00]} 16. Rc1 {[%emt 0:08:47]} Nxe5 {[%emt 0:00:00]} 17. dxe5 {[%emt 0:02:23]} Bxg2 {[%emt 0:00:00]} 18. Kxg2 {[%emt 0:08:32]} Nd7 {[%emt 0:00:00]} 19. b4 {[%emt 0:02:02]} h6 {[%emt 0:00:00]} 20. h4 {[%emt 0:05:40]} g5 {[%emt 0:00:00]} 21. hxg5 {[%emt 0:00:15]} hxg5 {[%emt 0:00:00]} 22. Bxg5 {[%emt 0:00:14]} Nxe5 {[%emt 0:00:00]} 23. Nxe7+ {[%emt 0:00:07]} Kh7 {[%emt 0:00:00]} 24. Rh1+ {[%emt 0:00:13]} Bh6 {[%emt 0:00:00]} 25. Rxh6+ {[%emt 0:00:19]} Kg7 {[%emt 0:00:00]} 26. Bf6+ {[%emt 0:00:31]} 1-0